Workbook

Sheet 28. Tableau des AUBU
A1: Tableau des autorisations budgétaires
A3: DEPENSES
B4: CF 2019 | D4: BI 2020 voté le 28 novembre 2019 | F4: BR 2020 voté le 26 novembre 2020 | H4: CF 2020
B5: Montants | D5: Montants | F5: Montants | H5: Montants | J5: taux de réalisation
B6: AE | C6: CP | D6: AE | E6: CP | F6: AE | G6: CP | H6: AE | I6: CP | J6: AE | K6: CP
A8: Personnel | B8: 140922264.9 | C8: 140922264.9 | D8: 143781760 | E8: 143781760 | F8: 144588972 | G8: 144588972 | H8: 144409864.2 | I8: 144409864.2 | J8: =+H8/F8 -> 0.9987612624 | K8: =+I8/G8 -> 0.9987612624
A9: Fonctionnement | B9: 48545727.86 | C9: 49383935.82 | D9: 55186491.04 | E9: 52490307.39 | F9: 51280363.4 | G9: 49422051.21 | H9: 47779569.65 | I9: 44656859.06 | J9: =+H9/F9 -> 0.9317322749 | K9: =+I9/G9 -> 0.9035816597
A10: Investissement | B10: 35853044.56 | C10: 34420845.73 | D10: 58795120.58 | E10: 51793088.58 | F10: 46753042.14 | G10: 38727152.89 | H10: 42597287.35 | I10: 37896175.7 | J10: 0.9111126335 | K10: 0.9785427761
A12: TOTAL DES DEPENSES - AE (A) CP (B) | B12: =SUM(B8:B11) -> 225321037.3 | C12: =SUM(C8:C11) -> 224727046.5 | D12: 257763371.6 | E12: 248065156 | F12: 242622377.5 | G12: 232738176.1 | H12: 234786721.2 | I12: 226962899 | J12: =+H12/F12 -> 0.9677043131 | K12: =+I12/G12 -> 0.9751855187
A14: RECETTES
B15: =+B4 -> CF 2019 | D15: =D4 -> BI 2020 voté le 28 novembre 2019 | F15: =F4 -> BR 2020 voté le 26 novembre 2020 | H15: =H4 -> CF 2020
C16: Montants | E16: Montants | G16: Montants | I16: Montants | K16: Taux de réalisation
A17: Recettes globalisées | C17: =SUM(C18:C20) -> 213208703.4 | E17: =SUM(E18:E20) -> 216664303 | G17: =SUM(G18:G20) -> 215304900.3 | I17: =SUM(I18:I20) -> 215964458 | K17: =+I17/G17 -> 1.003063366
A18: Subvention pour charges de service public | C18: 181840385 | E18: 183232611 | G18: 184039823 | I18: 184537094 | K18: =+I18/G18 -> 1.002701975
A19: Autres financements de l'Etat | C19: 20899240 | E19: 22737392 | G19: 22737392 | I19: 23112392 | K19: 1.016492657
A20: Recettes propres | C20: 10469078.44 | E20: 10694300 | G20: 8527685.29 | I20: 8314971.96 | K20: 0.9750561468
A22: Recettes fléchées* | C22: =SUM(C23:C25) -> 7754162.49 | E22: =SUM(E23:E25) -> 16424732.86 | G22: =SUM(G23:G25) -> 5827254.64 | I22: =SUM(I23:I25) -> 6409085.9 | K22: =+I22/G22 -> 1.099846548
A23: Financements de l'Etat fléchés | C23: 656591.96 | E23: 50000 | G23: 182859.17 | I23: 463722.35 | K23: 2.535953488
A24: Autres financements publics fléchés | C24: 841695.38 | E24: 1920828.8 | G24: 570200.07 | I24: 630446.99 | K24: 1.105659264
A25: Recettes propres fléchées | C25: 6255875.15 | E25: 14453904.06 | G25: 5074195.4 | I25: 5314916.56 | K25: 1.047440262
A27: TOTAL DES RECETTES (C) | C27: =C17+C22 -> 220962865.9 | E27: =E17+E22 -> 233089035.9 | G27: =G17+G22 -> 221132154.9 | I27: =I17+I22 -> 222373543.9 | K27: =+I27/G27 -> 1.005613788
A29: SOLDE BUDGETAIRE | B29: =B15 -> CF 2019 | D29: =D15 -> BI 2020 voté le 28 novembre 2019 | F29: =F4 -> BR 2020 voté le 26 novembre 2020 | H29: =H4 -> CF 2020
A30: Abondement ou prélèvement sur la trésorerie | C30: =+C27-C12 -> -3764180.54 | E30: =+E27-E12 -> -14976120.11 | G30: =+G27-G12 -> -11606021.17 | I30: =+I27-I12 -> -4589355.11

Sheet 29. budget 2020 par destination
A1: Le budget 2020 par destinations (rang 1 & 2) - en AE & CP
A3: Dest 1 | B3: Destination de niveau 2 | C3: Personnel | E3: Fonctionnement | H3: Investissement | K3: TOTAL
C4: AE=CP | E4: AE | F4: CP | H4: AE | I4: CP | K4: AE | L4: CP
A5: Patrimoine immobilier | B5: Projet Richelieu | C5: 1017609.173 | E5: 438195.83 | F5: 339723.24 | H5: 8225022.94 | I5: 7698713.16 | K5: =+C5+E5+H5 -> 9680827.943 | L5: =+C5+F5+I5 -> 9056045.573 | O5: CP | T5: CP
B6: Richelieu et annexes | C6: 172267.8973 | E6: 313467.07 | F6: 302308.23 | H6: 11664.92 | I6: 4948.09 | K6: 497399.8873 | L6: 479524.2173 | O6: Personnel | P6: =+C57 -> 144409864.2 | T6: Patrimoine immobilier | U6: =+L14 -> 22510894.49
B7: François Mitterrand | C7: 573521.5215 | E7: 83372.24 | F7: 75184.45 | H7: 7918977.19 | I7: 3794702.78 | K7: 8575870.951 | L7: 4443408.751 | O7: Fonctionnement | P7: =+F57 -> 44656859.06 | T7: Patrimoine collections | U7: =+L24 -> 83172066.92
B8: Bussy | C8: 52611.59413 | E8: 0 | F8: 0 | H8: 0 | I8: 1654.1 | K8: 52611.59413 | L8: 54265.69413 | O8: Investissement | P8: =+I57 -> 37896175.7 | T8: Diffusion valorisation | U8: =+L41 -> 57806289.79
B9: Arsenal | C9: 49005.61712 | E9: 0 | F9: 0 | H9: 81272.56 | I9: 227347.73 | K9: 130278.1771 | L9: 276353.3471 | T9: Fonctions support | U9: =+L55 -> 63473647.78
B10: Bibliothèque musée de l'Opéra | C10: 31484.13586 | E10: 6292.36 | K10: 37776.49586 | L10: 31484.13586
B11: Sablé | C11: 12575.81921 | E11: 44979.31 | F11: 56302.81 | H11: 0 | I11: 757.57 | K11: 57555.12921 | L11: 69636.19921
B12: Boulevard St Michel | C12: 7252.954335 | E12: 2196.85 | F12: 1183.79 | H12: 150511.8 | I12: 13387.8 | K12: 159961.6043 | L12: 21824.54433
B13: Multisites | C13: 79466.79532 | E13: 5873439.01 | F13: 5519107.56 | H13: 2237122.96 | I13: 2479777.67 | K13: 8190028.765 | L13: 8078352.025
A14: Total Patrimoine immobilier | C14: =SUM(C5:C13) -> 1995795.508 | E14: =SUM(E5:E13) -> 6761942.67 | F14: 6293810.08 | H14: 18624572.37 | I14: 14221288.9 | K14: 27382310.55 | L14: 22510894.49
A15: Patrimoine collections | B15: Dépôt légal | C15: 5572845.798 | E15: 335159.87 | F15: 311159.87 | H15: 466183.65 | I15: 770246.75 | K15: =+C15+E15+H15 -> 6374189.318 | L15: =+C15+F15+I15 -> 6654252.418
B16: Pôles associés | C16: 1041361.676 | E16: 1312147.46 | F16: 1276276.89 | H16: 98040.19 | I16: 78880.98 | K16: 2451549.326 | L16: 2396519.546
B17: Acquisitions | C17: 8947986.983 | E17: 2267772.33 | F17: 2010771.74 | H17: 6517312.98 | I17: 6418995.95 | K17: 17733072.29 | L17: 17377754.67
B18: Constitution des collections numériques | C18: 5931420.134 | E18: 225638.1 | F18: 125449.38 | H18: 2513815.21 | I18: 1872221.99 | K18: 8670873.444 | L18: 7929091.504
B19: Restauration/conservation | C19: 16039843.94 | E19: 2169532.52 | F19: 1855807.24 | H19: 542366.9 | I19: 544354.65 | K19: 18751743.36 | L19: 18440005.83
B20: Sûreté des collections | C20: 2532430.096 | E20: 10414.88 | F20: 10414.88 | H20: 0 | I20: 0 | K20: 2542844.976 | L20: 2542844.976
B21: Stockage des collections physiques | C21: 2127148.21 | E21: 316225.15 | F21: 444029.69 | H21: 271913.67 | I21: 600844.66 | K21: 2715287.03 | L21: 3172022.56
B22: Catalogage hors informatique | C22: 20365900.12 | E22: 0 | F22: 0 | H22: 74194.16 | I22: 228519.41 | K22: 20440094.28 | L22: 20594419.53
B23: SIBIB/SINUM pour conservation | C23: 2050918.389 | E23: 308736.92 | F23: 248032.84 | H23: 2025805.73 | I23: 1766204.66 | K23: 4385461.039 | L23: 4065155.889
A24: Total Patrimoine collections | C24: =SUM(C15:C23) -> 64609855.34 | E24: =SUM(E15:E23) -> 6945627.23 | F24: 6281942.53 | H24: 12509632.49 | I24: 12280269.05 | K24: 84065115.06 | L24: 83172066.92
A25: Diffusion et valorisation | B25: Accueil | C25: 3134293.08 | E25: 260260.67 | F25: 283210.08 | H25: 31721.46 | I25: 65949.35 | K25: =+C25+E25+H25 -> 3426275.21 | L25: =+C25+F25+I25 -> 3483452.51
B26: Mise à disposition des collections physiques | C26: 10528951.65 | E26: 1305579.13 | F26: 1409459.28 | H26: 714326.04 | I26: 663680.64 | K26: 12548856.82 | L26: 12602091.57
B27: Exception handicap | C27: 274373.0304 | E27: 0 | F27: 0 | H27: 168701.2 | I27: 126583.53 | K27: 443074.2304 | L27: 400956.5604
B28: Education artistique et cultutelle | E28: 165238.66 | F28: 146530.51 | H28: 5095.08 | I28: 5095.08 | K28: =+C28+E28+H28 -> 170333.74 | L28: =+C28+F28+I28 -> 151625.59
B29: Services à distance | C29: 5760673.33 | E29: 345455 | F29: 407567.61 | H29: 1642727.59 | I29: 1742054.38 | K29: 7748855.92 | L29: 7910295.32
B30: Reproduction | C30: 4568848.727 | E30: 88656.18 | F30: 76060.92 | H30: 132675.24 | I30: 14079.74 | K30: 4790180.147 | L30: 4658989.387
B31: Éditions et produits dérivés | C31: 2002550.327 | E31: 839415.01 | F31: 770868.19 | H31: 342840.15 | I31: 408800.03 | K31: 3184805.487 | L31: 3182218.547
B32: Expositions | C32: 3307876.081 | E32: 945176.54 | F32: 837495.49 | H32: 848295.01 | I32: 343573.88 | K32: 5101347.631 | L32: 4488945.451
B33: Manifestations | C33: 1979239.602 | E33: 199963.94 | F33: 191152.22 | H33: 168132.5 | I33: 168132.5 | K33: 2347336.042 | L33: 2338524.322
B34: Actions pédagogiques et éducatives | C34: 1063026.239 | E34: 0 | F34: 0 | H34: 2546.6 | I34: 2546.6 | K34: 1065572.839 | L34: 1065572.839
B35: Formation professionnelle | C35: 684934.7311 | E35: 7344.86 | F35: 5086.61 | H35: 0 | I35: 0 | K35: 692279.5911 | L35: 690021.3411
B36: Recherche scientifique | C36: 2137861.591 | E36: 177937.29 | F36: 157242.57 | H36: 0 | I36: 1613.51 | K36: 2315798.881 | L36: 2296717.671
B37: Activités internationales | C37: 1012552.81 | E37: 69989.27 | F37: 67869.26 | H37: 464.34 | I37: 35173.34 | K37: 1083006.42 | L37: 1115595.41
B38: SIBIB/SINUM pour communication | C38: 2276397.528 | E38: 260860.39 | F38: 190146.42 | H38: 2694567.21 | I38: 1860751.29 | K38: 5231825.128 | L38: 4327295.238
B39: Service public sur place | C39: 9093988.027 | K39: 9093988.027 | L39: 9093988.027
B40: Participation à la filiale | C40: 0 | E40: 0 | F40: 0 | H40: 0 | I40: 0 | K40: 0 | L40: 0
A41: Total Diffusion et valorisation | C41: =SUM(C25:C40) -> 47825566.76 | E41: =SUM(E25:E40) -> 4665876.94 | F41: =SUM(F25:F40) -> 4542689.16 | H41: =SUM(H25:H40) -> 6752092.42 | I41: =SUM(I25:I40) -> 5438033.87 | K41: =SUM(K25:K40) -> 59243536.12 | L41: =SUM(L25:L40) -> 57806289.79
A42: Fonctions support | B42: Sécurité et sûreté | C42: 2331285.665 | E42: 9405160.65 | F42: 8532017.01 | H42: 64227.8 | I42: 39126.95 | K42: =+C42+E42+H42 -> 11800674.11 | L42: =+C42+F42+I42 -> 10902429.62
B43: Logistique / exploitation | C43: 5006863.208 | E43: 12689889.7 | F43: 12151652.29 | H43: 295321.1 | I43: 842204.32 | K43: 17992074.01 | L43: 18000719.82
B44: Locations immobilières et charges | C44: 349593.2189 | E44: 345573.4 | F44: 439639.63 | H44: 0 | I44: 0 | K44: 695166.6189 | L44: 789232.8489
B45: Pilotage stratégie | C45: 4032435.558 | E45: 235797.3 | F45: 243880.1 | H45: 195609.32 | I45: 267223.52 | K45: 4463842.178 | L45: 4543539.178
B46: Frais de mission | C46: 109420.5947 | E46: 50731.55 | F46: 49202.55 | H46: 0 | I46: 0 | K46: 160152.1447 | L46: 158623.1447
B47: Communication | C47: 1719245.38 | E47: 342113.26 | F47: 357728.61 | H47: 177566.88 | I47: 344998.85 | K47: 2238925.52 | L47: 2421972.84
B48: Dépenses relatives au personnel | C48: 7274770.933 | E48: 694255.98 | F48: 601749.05 | H48: 378756.01 | I48: 591736.75 | K48: 8347782.923 | L48: 8468256.733
B49: Informatique transverse | C49: 0 | E49: 4199956.31 | F49: 4137914.45 | H49: 1337826.61 | I49: 1933284.67 | K49: 5537782.92 | L49: 6071199.12
B50: Informatique bureautique | C50: 1891524.57 | E50: 304515.44 | F50: 146353.82 | H50: 1798956.05 | I50: 1520070.96 | K50: 3994996.06 | L50: 3557949.35
B51: Documentation | C51: 77458.80527 | E51: 186271.73 | F51: 193385.57 | H51: 0 | I51: 0 | K51: 263730.5353 | L51: 270844.3753
B52: Charges financières | C52: 0 | E52: 198943.34 | F52: 196437.85 | H52: 80 | I52: 80 | K52: 199023.34 | L52: 196517.85
B53: Gestion administrative | C53: 7186048.672 | E53: 606412.76 | F53: 379646.15 | H53: 462646.3 | I53: 417857.86 | K53: 8255107.732 | L53: 7983552.682
B54: Personnel | C54: 0 | E54: 146501.39 | F54: 108810.21 | H54: 0 | I54: 0 | K54: 146501.39 | L54: 108810.21
A55: Total Fonctions support | C55: =SUM(C42:C54) -> 29978646.61 | E55: =SUM(E42:E54) -> 29406122.81 | F55: =SUM(F42:F54) -> 27538417.29 | H55: 4710990.07 | I55: 5956583.88 | K55: 64095759.49 | L55: 63473647.78
A57: Total charges décaissables | C57: =C14+C24+C41+C55 -> 144409864.2 | E57: =E14+E24+E41+E55 -> 47779569.65 | F57: =F14+F24+F41+F55 -> 44656859.06 | H57: =H14+H24+H41+H55 -> 42597287.35 | I57: =I14+I24+I41+I55 -> 37896175.7 | K57: =K14+K24+K41+K55 -> 234786721.2 | L57: =L14+L24+L41+L55 -> 226962899

Sheet 30. Poste Investissement
A3: Postes d'investissement en CP | B3: CF 2017 | C3: CF 2018 | D3: CF 2019 | E3: CF 2020
A4: Travaux | B4: 7505524.16 | C4: 10617413.53 | D4: 8496352.21 | E4: 15506359.24
A5: Informatique | B5: 8012280.21 | C5: 7963431.52 | D5: 13371738.68 | E5: 11486845.53
A6: Acquisitions | B6: 7171136.07 | C6: 7480792.91 | D6: 6259136.18 | E6: 6418995.95
A7: Numérisation des collections | B7: 6939769.3 | C7: 3202189.55 | D7: 2437310.3 | E7: 1846597.51
A8: Autres | B8: 4517128.52 | C8: 3270953.93 | D8: 3856308.36 | E8: 2637377.47
B9: =SUM(B4:B8) -> 34145838.26 | C9: =SUM(C4:C8) -> 32534781.44 | D9: =SUM(D4:D8) -> 34420845.73 | E9: =SUM(E4:E8) -> 37896175.7

Sheet 31 Postes Fonctionnement
A3: Postes de fonctionnement en CP | B3: CF 2017 | C3: CF 2018 | D3: CF 2019 | E3: CF 2020
A4: Exploitation technique / Sûreté Sécurité | B4: 29580548.06 | C4: 28546080.96 | D4: 28996399.71 | E4: 26725667.8
A5: Informatique | B5: 5366608.67 | C5: 5636742.21 | D5: 6295639.09 | E5: 6328952.1
A6: Collections (Acquisitions, conservation) | B6: 5373472.04 | C6: 4904227.57 | D6: 6137818.93 | E6: 4183117.6
A7: Difusion culturelle | B7: 2832869.95 | C7: 2663840.85 | D7: 2741647.91 | E7: 2075818.45
A8: Communication | B8: 1385653.72 | C8: 1327217.7 | D8: 1357993.11 | E8: 620643.11
A9: Pôles associés | B9: 1977141.45 | C9: 1856334.52 | D9: 1211429.41 | E9: 1276276.89
A10: Action internationale, études et recherche | B10: 823645.65 | C10: 1025060.49 | D10: 589491.25 | E10: 470278.97
A11: Charges financières et administratives | B11: 673233.73 | C11: 748309.23 | D11: 528205.04 | E11: 1273124.94
A12: Dépenses relatives au personnel | B12: 1354735.13 | C12: 1590761.43 | D12: 1339766.14 | E12: 1496934.39
A13: Autres | B13: 368648.14 | C13: 319448.39 | D13: 185545.23 | E13: 206044.81
B14: =SUM(B4:B13) -> 49736556.54 | C14: =SUM(C4:C13) -> 48618023.35 | D14: =SUM(D4:D13) -> 49383935.82 | E14: =SUM(E4:E13) -> 44656859.06

Sheet 32. Recettes par origines
B2: Détail des recettes par origines | J2: Subventions Etat | K2: =+F6 -> 208044349.2
J3: Autres ressources | K3: =+F17-K2 -> 14329194.68
B4: Recettes en GBCP | D4: CF 2018 | E4: CF 2019 | F4: CF 2020
B6: Subventions d'Etat | D6: 202056902 | E6: 203240487.8 | F6: 208044349.2 | N6: CF 2018 | O6: CF 2019 | P6: CF 2020
B7: Autres subventions | D7: 6126118.47 | E7: 1259715.88 | F7: 851368.98 | J7: Autres subventions | K7: =+F7 -> 851368.98 | M7: Subventions Etat | N7: =+D6/D17 -> 0.8920728775 | O7: =+E6/E17 -> 0.9197947669 | P7: =+F6/F17 -> 0.9355625025
B8: Mécénat et parrainage | D8: 2688580.75 | E8: 2983445.51 | F8: 2719341.66 | J8: Mécénat et parrainage | K8: 2719341.66 | M8: Autres ressources | N8: =1-N7 -> 0.1079271225 | O8: =1-O7 -> 0.08020523315 | P8: =1-P7 -> 0.06443749752
B9: Billetterie (dont accès au salles de lecture et expositions) | D9: 1712806.75 | E9: 2138802.92 | F9: 1340641.5 | J9: Billetterie | K9: 1340641.5
B10: Coproduction, tournées et itinérances de spéctacles et d'exposition | D10: 55790.55 | E10: 47611 | F10: 61914.27 | J10: Itinérance expositions | K10: 61914.27
B11: Activités commerciales (dont éditions et mise à dispo. infrastructures informatiques) | D11: 738886.75 | E11: 1810528.64 | F11: 1348252.02 | J11: Activités commerciales | K11: 1348252.02
B12: Valorisation du domaine | D12: 6604052.91 | E12: 3794485.36 | F12: 3469788.38 | J12: Valorisation du domaine | K12: 3469788.38
B13: Valorisation des collections (dont reproduction et partenariats de numérisation) | D13: 1814072.31 | E13: 1320756.68 | F13: 993492.71 | J13: Valorisation des collections | K13: 993492.71
B14: Activités d'enseignement | D14: 62806.56 | E14: 88829.5 | F14: 30353.95 | J14: Activités d'enseignement | K14: 30353.95
B15: Recettes diverses | D15: 4642667.99 | E15: 4278202.69 | F15: 3514041.21 | J15: Recettes diverses | K15: 3514041.21
B17: Total recettes | D17: =SUM(D6:D15) -> 226502685 | E17: =SUM(E6:E15) -> 220962865.9 | F17: =SUM(F6:F15) -> 222373543.9

Sheet 33. Situation patrimoniale
A1: Situation patrimoniale - Comptabilité générale
B3: 2017 | C3: 2018 | D3: 2019 | E3: 2020
A4: CHARGES D'EXPLOITATION | B4: =SUM(B5:B7) -> 246224263 | C4: =SUM(C5:C7) -> 242108673 | D4: =SUM(D5:D7) -> 240663194.7 | E4: 241677742
A5: Personnel | B5: 137768349.1 | C5: 139386825 | D5: 141067602.5 | E5: 144511107.6
A6: Autres charges de fonctionnement | B6: 52629602.93 | C6: 49616553 | D6: 48458249.38 | E6: 44656043.04
A7: Charges calculées | B7: 55826311 | C7: 53105295 | D7: 51137342.81 | E7: 52510591.36
A9: RECETTES DE FONCTIONNEMENT | B9: =SUM(B10:B12) -> 247924281.4 | C9: =SUM(C10:C12) -> 242117758.1 | D9: =SUM(D10:D12) -> 244733267.4 | E9: =SUM(E10:E12) -> 242319899.4
A10: Subvention pour charge de service public | B10: 183582589 | C10: 178712862 | D10: 181840385 | E10: 185015050.1
A11: Autres ressources | B11: 10529051.36 | C11: 13313559.05 | D11: 11894349.44 | E11: 8950991.7
A12: Recettes calculées | B12: 53812641 | C12: 50091337 | D12: 50998533 | E12: 48353857.61
A14: Résultat patrimonial | B14: =+B9-B4 -> 1700018.36 | C14: 9085.05 | D14: =+D9-D4 -> 4070072.71 | E14: =+E9-E4 -> 642157.43
A15: CAF | B15: =+B10+B11-B5-B6 -> 3713688.36 | C15: 3023043.05 | D15: =+D10+D11-D5-D6 -> 4208882.52 | E15: =+E10+E11-E5-E6 -> 4798891.18
A17: DEPENSES D'INVESTISSEMENT | B17: 37253844 | C17: 32642010 | D17: 39879308.34 | E17: 49263107.78
A19: RECETTES D'INVESTISSEMENT | B19: 35468642 | C19: 33728072 | D19: 32748099.96 | E19: =SUM(E20:E21) -> 38999617.27
A20: Dotation en fonds propres | B20: 24462933 | C20: 23216740 | D20: 21374240 | E20: 34486575.27
A21: Autres ressources | B21: =+B19-B20 -> 11005709 | C21: 10511332 | D21: 7783840 | E21: 4513042
A23: PRELEVEMENT SUR LE FONDS DE ROULEMENT | B23: =B19-B17+B15 -> 1928486.36 | C23: =C19-C17+C15 -> 4109105.05 | D23: =D19-D17+D15 -> -2922325.86 | E23: =E19-E17+E15 -> -5464599.33
A26: Situation patrimoniale - Comptabilité générale
J27: CF 2017 | K27: CF2018 | L27: CF2019 | M27: CF2020
B28: 2017 | C28: 2018 | D28: 2019 | E28: 2020 | I28: Résultat | J28: =+B41 -> 1700018.36 | K28: =+C41 -> 9085.05 | L28: =+D41 -> 4070072.71 | M28: =+E41 -> 642157.43
A29: CHARGES D'EXPLOITATION | B29: =SUM(B30:B31) -> 190397952 | C29: 189003378 | D29: 189525851.9 | E29: =SUM(E30:E31) -> 189167150.6 | I29: CAF | J29: =+B37 -> 3713688.36 | K29: =+C37 -> 3023043.05 | L29: =+D37 -> 4208882.52 | M29: =+E37 -> 4798891.18
A30: Personnel | B30: 137768349.1 | C30: 139386825 | D30: 141067602.5 | E30: 144511107.6
A31: Autres charges de fonctionnement | B31: 52629602.93 | C31: 49616553 | D31: =99595592.19-D39 -> 48458249.38 | E31: 44656043.04
A33: RECETTES DE FONCTIONNEMENT | B33: =SUM(B34:B40) -> 307464280.7 | C33: 242117758.1 | D33: 244733267.4 | E33: 244733267.4
A34: Subvention pour charge de service public | B34: 183582589 | C34: 178712862 | D34: 181840385 | E34: 185015050.1
A35: Autres ressources | B35: 10529051.36 | C35: 13313559.05 | D35: 11894349.44 | E35: 8950991.7
A37: CAF | B37: =+B34+B35-B30-B31 -> 3713688.36 | C37: =+C34+C35-C30-C31 -> 3023043.05 | D37: =+D34+D35-D30-D31 -> 4208882.52 | E37: =+E34+E35-E30-E31 -> 4798891.18
A39: Charges calculées | B39: =55829311-3000 -> 55826311 | C39: 53105295 | D39: 51137342.81 | E39: 52510591.36
A40: Recettes calculées | B40: =53815640-2999 -> 53812641 | C40: 50091337 | D40: 50998533 | E40: 48353857.61
A41: Résultat patrimonial | B41: =+B37-B39+B40 -> 1700018.36 | C41: =+C37-C39+C40 -> 9085.05 | D41: 4070072.71 | E41: 642157.43
A43: DEPENSES D'INVESTISSEMENT | B43: 37253844 | C43: 32642010 | D43: 39879308.34 | E43: 49263107.78
A45: RECETTES D'INVESTISSEMENT | B45: 35468642 | C45: 33728072 | D45: 32748099.96 | E45: =SUM(E46:E47) -> 38999617.27
A46: Dotation en fonds propres | B46: 24462933 | C46: 23216740 | D46: 21374240 | E46: 34486575.27
A47: Autres ressources | B47: =+B45-B46 -> 11005709 | C47: =+C45-C46 -> 10511332 | D47: 7783840 | E47: 4513042
A49: PRELEVEMENT SUR LE FONDS DE ROULEMENT | B49: =B45-B43+B37 -> 1928486.36 | C49: =C45-C43+C37 -> 4109105.05 | D49: =D45-D43+D37 -> -2922325.86 | E49: =E45-E43+E37 -> -5464599.33

Sheet 34. Exécution du budget
A1: Tableau 34 : L’exécution du budget
A3: Taux de consommation des crédits | B3: 2017 | D3: 2018 | F3: 2019 | H3: 2020
B4: AE | C4: CP | D4: AE | E4: CP | F4: AE | G4: CP | H4: AE | I4: CP
A5: Personnel | B5: =138774891/139273730 -> 0.9964182836 | D5: =140250088/140508214 -> 0.9981629117 | F5: 0.9888080507 | H5: 0.9988
A6: Fonctionnement | B6: =49755301/51798368 -> 0.9605573095 | C6: =49736557/52180619 -> 0.9531614985 | D6: =53801614/55587261 -> 0.9678766867 | E6: =50641612/54373144 -> 0.9313717816 | F6: 0.9928713084 | G6: 0.9922808809 | H6: 0.9317 | I6: 0.9036
A7: Total compte de résultat | B7: =188530192/191072098 -> 0.9866966133 | C7: =188511447/191454349 -> 0.9846287012 | D7: =194051702/196095475 -> 0.9895776636 | E7: =190891700/194881358 -> 0.9795277597 | F7: 0.9898459714 | G7: 0.9897069029 | H7: 0.9812 | I7: 0.9745
A8: Investissement | B8: =33460463/35045345 -> 0.9547762477 | C8: =34145838/38017509 -> 0.8981608448 | D8: =35643845/36754489 -> 0.9697820857 | E8: =32534781/36688605 -> 0.8867816315 | F8: 0.9679661991 | G8: 0.9607149592 | H8: 0.9111 | I8: 0.9785

Sheet 35. dépenses dirigeants
A1: Le suivi des dépenses dirigeants
B3: 2017 | C3: 2018 | D3: 2019 | E3: 2020
A4: 1. Frais de réception et de représentation | B4: 10692 | C4: 5941 | D4: 3314 | E4: 1683
A5: 2. Déplacements (missions et taxis) | B5: 20020 | C5: 32664 | D5: 18129 | E5: 7496
A6: 3. Autre | B6: 3166 | C6: 31571 | D6: 213 | E6: 0
A7: 3.1 Formations | B7: 3166 | C7: 2047 | D7: 213 | E7: 0
A8: 3.2 Véhicule de direction | C8: 30524
